bitfinex/quotes_ETHUSD_20250813
["timestamp","ask_amount","ask_price","bid_price","bid_amount"]
[1755057122004,0.108,4635.8,4635.1,8.787]
[1755057122005,0.108,4636.1,4635.4,0.108]
[1755057122353,0.108,4636.5,4635.7,0.108]
[1755057122503,0.108,4636.7,4636.0,0.108]
[1755057122702,0.108,4636.7,4636.1,5.2266]
[1755057122862,0.108,4636.7,4636.1,5.401727]
[1755057123062,0.108,4636.7,4636.2,4.0853]
[1755057123263,0.108,4636.7,4636.2,0.4713]
[1755057123462,1.5344,4638.0,4636.3,5.2246]
[1755057123760,2.15516617,4640.1,4636.3,5.2246]
[1755057123761,0.108,4636.6,4636.4,0.4713]
[1755057124106,0.108,4636.9,4636.5,1.1413]
[1755057124315,0.108,4636.9,4636.6,1.6126]
[1755057124477,0.55,4637.5,4636.1,0.646443]
[1755057124665,0.55,4637.5,4635.2,0.4713]
[1755057124666,0.108,4636.4,4636.2,8.781]
[1755057124865,0.55,4636.7,4636.3,3.612]
[1755057125180,0.658,4636.4,4636.3,3.612]
[1755057125363,0.658,4636.4,4635.2,0.4713]
[1755057125364,0.55,4636.3,4635.2,0.4713]
[1755057125564,0.55,4636.3,4635.3,8.782]
[1755057125763,0.108,4636.4,4635.3,8.782]
[1755057125993,0.108,4635.4,4635.3,8.782]
[1755057126195,0.108,4635.4,4635.3,5.17]
[1755057126428,0.108,4635.4,4635.3,8.779]
[1755057126877,0.108,4635.4,4635.3,8.778]
[1755057127085,0.658,4635.4,4635.3,8.777]
[1755057127258,0.658,4635.4,4635.3,5.17]
[1755057127464,1.7308,4635.4,4635.3,8.777]
[1755057127694,1.90388,4635.4,4635.3,8.777]
[1755057127905,0.412557,4635.3,4634.8,2.689]
[1755057128115,0.412557,4635.3,4634.9,8.776]
[1755057128460,0.108,4635.0,4634.9,8.776]
[1755057129186,0.108,4635.0,4634.9,5.17]
[1755057129582,0.108,4635.0,4634.8,2.689]
[1755057129583,1.6424,4635.0,4634.8,2.689]
[1755057129867,2.24864,4634.9,4634.8,2.689]
[1755057129992,0.55,4634.8,4634.7,0.001]
[1755057130202,2.0844,4634.8,4634.7,8.773]
[1755057130386,2.0844,4634.8,4634.7,5.17]
[1755057130592,0.16424,4634.9,4634.7,5.17]
[1755057130787,1.6228,4635.5,4634.7,5.17]
[1755057131491,0.4616,4636.0,4634.8,3.599]
[1755057131716,0.4616,4636.0,4634.3,0.4723]
[1755057131717,0.55,4635.9,4634.9,8.77]
[1755057131917,0.55,4635.9,4635.0,3.599]
[1755057132691,0.55,4636.0,4635.0,3.599]
[1755057132915,1.5344,4636.9,4635.1,0.4713]
[1755057133302,0.55,4636.8,4635.1,0.4713]
[1755057133496,1.5344,4636.9,4635.1,0.4713]
[1755057134105,0.55,4636.8,4635.1,0.4713]
[1755057135044,0.55,4636.8,4635.0,3.599]
[1755057135354,0.55,4636.6,4634.9,5.171]
[1755057135509,0.55,4636.6,4635.1,3.591]
[1755057135849,2.70676816,4636.6,4635.2,3.59]
[1755057136050,0.55,4635.9,4634.9,5.171]
[1755057136204,0.55,4635.9,4634.3,0.001]
[1755057136205,0.55,4635.7,4635.0,5.171]
[1755057136404,2.7071844,4635.7,4635.1,5.171]
[1755057136713,0.55,4635.5,4635.2,8.759]
[1755057137036,2.0844,4635.4,4635.3,5.171]
[1755057137354,0.55,4635.3,4634.3,0.001]
[1755057137536,0.55,4635.1,4634.3,0.001]
[1755057137899,0.55,4634.9,4634.3,0.001]
[1755057138112,0.55,4634.9,4634.4,2.011]
[1755057138318,0.55,4634.7,4633.0,0.646901]
[1755057138530,0.55,4634.7,4633.1,1.6126]
[1755057138829,0.55,4635.6,4633.2,1.6126]
[1755057139035,0.55,4635.4,4633.3,1.6126]
[1755057139238,0.55,4635.4,4633.4,0.4713]
[1755057139616,0.55,4635.2,4633.4,0.4713]
[1755057139829,0.55,4635.2,4633.5,3.583]
[1755057140134,0.55,4635.2,4633.6,1.6126]
[1755057140338,0.106,4634.3,4633.7,1.6126]
[1755057140512,0.108,4633.9,4633.0,0.646943]
[1755057140831,0.108,4633.9,4633.1,5.2026]
[1755057141053,0.108,4633.6,4633.2,0.4713]
[1755057141275,0.55,4634.8,4633.3,4.0623]
[1755057141439,0.20844,4634.7,4633.4,3.591]
[1755057141632,0.108,4633.4,4633.3,0.4713]
[1755057141832,0.108,4633.4,4633.3,4.0623]
[1755057142047,0.108,4633.4,4633.3,0.4713]
[1755057142364,0.108,4633.4,4633.3,4.0603]
[1755057143226,0.108,4633.4,4633.3,0.4713]
[1755057143428,0.108,4633.4,4632.8,0.4713]
[1755057143646,0.658,4633.4,4633.3,3.586]
[1755057143847,18.44155585,4635.2,4632.4,0.55]
[1755057143848,0.55,4633.3,4632.4,0.55]
[1755057144033,0.55,4633.9,4632.5,3.586]
[1755057144233,0.108,4632.6,4632.3,0.4713]
[1755057144461,0.108,4632.6,4632.4,3.584]
[1755057144664,0.108,4632.5,4632.3,1.1413]
[1755057144829,0.55,4633.7,4632.3,1.1413]
[1755057145028,0.108,4632.4,4632.3,1.1413]
[1755057145224,0.108,4632.4,4632.3,2.6783]
[1755057145550,0.108,4632.4,4632.3,7.8503]
[1755057147232,0.108,4632.4,4632.3,8.75]
[1755057147755,0.108,4632.4,4632.3,8.751]
[1755057148139,0.108,4632.4,4632.3,8.75]
[1755057148342,0.108,4632.4,4632.3,5.174]
[1755057148544,0.658,4632.4,4632.3,5.174]
[1755057148753,0.658,4632.4,4632.3,8.748]
[1755057148950,0.658,4632.4,4632.3,5.174]
[1755057149154,0.658,4632.4,4632.3,8.748]
[1755057149529,0.658,4632.4,4632.3,8.747]
[1755057149735,0.658,4632.4,4632.3,0.001]
[1755057150065,1.769,4632.4,4632.3,8.745]
[1755057150234,1.9459,4632.4,4632.3,8.745]
[1755057150437,0.8349,4632.4,4632.3,8.745]
[1755057150639,0.658,4632.4,4632.3,8.745]
[1755057150832,0.658,4632.4,4632.3,0.001]
[1755057151138,0.658,4632.4,4632.3,8.742]
[1755057151349,2.2013,4632.4,4632.3,5.174]
[1755057151549,2.2013,4632.4,4632.3,8.742]
[1755057151748,2.42143,4632.4,4632.3,5.174]
[1755057151963,2.42143,4632.4,4632.3,0.001]
[1755057152165,2.42143,4632.4,4632.3,8.741]
[1755057152468,1.98913,4632.4,4632.3,8.741]
[1755057152674,0.87813,4632.4,4632.3,8.741]
[1755057152849,0.87813,4632.4,4631.4,0.001]
[1755057152850,0.55,4632.3,4631.4,0.001]
[1755057153166,0.9823,4632.3,4631.5,8.591]
[1755057153759,0.9823,4632.3,4631.6,3.572]
[1755057153968,16.28410809,4633.7,4631.5,5.174]
[1755057154268,1.111,4633.0,4631.6,3.572]
[1755057154452,0.15433,4632.9,4631.7,0.4677]
[1755057154643,0.55,4632.8,4631.7,0.4677]
[1755057154842,0.15433,4632.9,4631.7,0.4677]
[1755057155235,0.55,4632.8,4631.7,0.4677]
[1755057155639,0.15433,4632.9,4631.7,0.4677]
[1755057155838,1.111,4633.7,4631.8,1.122]
[1755057156169,0.55,4633.6,4631.9,4.0377]
[1755057156474,0.55,4633.4,4631.5,5.174]
[1755057156672,0.55,4633.2,4632.0,3.569]
[1755057157170,0.55,4633.5,4632.1,0.4677]
[1755057157570,0.55,4633.7,4632.1,0.4677]
[1755057157743,0.55,4633.5,4632.1,0.4677]
[1755057158473,0.55,4633.5,4631.5,5.174]
[1755057158474,0.55,4633.3,4631.5,5.174]
[1755057158663,0.55,4633.1,4631.6,3.569]
[1755057158974,0.55,4633.1,4631.7,0.647207]
[1755057159164,0.55,4632.9,4631.8,3.566]
[1755057160038,0.55,4632.9,4631.7,0.4677]
[1755057160378,1.111,4632.8,4631.5,5.174]
[1755057160544,1.111,4632.8,4631.6,3.564]
[1755057160747,1.111,4632.8,4631.6,0.4677]
[1755057160942,0.1869449,4632.7,4631.7,3.562]
[1755057161161,0.1869449,4632.7,4631.6,0.4677]
[1755057161355,0.1869449,4632.7,4631.7,3.561]
[1755057161663,0.1869449,4632.7,4631.8,3.561]
[1755057161871,0.4323,4633.2,4631.9,0.4677]
[1755057162195,1.111,4633.4,4631.9,0.4677]
[1755057162472,0.55,4633.3,4632.0,3.559]
[1755057162687,0.55,4633.3,4631.9,0.4677]
[1755057162843,0.55,4633.3,4632.1,3.559]
[1755057163171,0.55,4633.1,4632.2,0.4677]
[1755057163377,0.55,4633.6,4632.2,1.5897]
[1755057163673,0.108,4632.3,4632.2,1.5897]
[1755057164093,1.111,4633.9,4632.2,1.5897]
[1755057164258,0.108,4632.3,4632.2,1.122]
[1755057164990,0.108,4632.3,4632.2,1.5897]
[1755057165482,1.111,4634.6,4632.2,1.5897]
[1755057165483,0.108,4632.5,4632.2,1.5897]
[1755057165651,0.108,4632.5,4632.1,3.559]
[1755057165852,0.108,4632.5,4632.3,1.5897]
[1755057166268,0.108,4632.5,4632.4,1.5897]
[1755057166455,0.108,4632.5,4632.4,1.6977]
[1755057166946,0.108,4632.5,4632.4,5.2507]
[1755057167848,0.108,4632.5,4632.4,1.6977]
[1755057168172,0.108,4632.7,4632.4,5.2477]
[1755057168374,0.108,4632.7,4632.4,3.658]
[1755057168546,0.108,4632.7,4632.5,1.5897]
[1755057168744,0.108,4632.7,4632.4,0.5757]
[1755057168948,0.108,4632.7,4632.5,3.546]
[1755057169149,0.108,4632.7,4632.5,4.0137]
[1755057169382,0.108,4632.6,4632.5,3.546]
[1755057169745,0.108,4632.6,4632.5,4.668]
[1755057170060,0.108,4632.6,4632.5,5.1357]
[1755057171672,0.108,4632.6,4632.5,0.4677]
[1755057171985,0.108,4632.6,4632.4,0.108]
[1755057172174,0.108,4632.6,4632.5,3.543]
[1755057172559,0.108,4632.6,4632.4,0.108]
[1755057172760,0.108,4632.6,4632.5,3.542]
[1755057173360,0.002,4633.4,4632.5,5.1317]
[1755057173694,0.002,4633.4,4632.4,0.108]
[1755057173867,0.002,4633.4,4632.5,3.54]
[1755057174191,0.002,4633.4,4632.6,3.543]
[1755057174490,0.108,4632.7,4632.6,3.543]
[1755057175389,0.108,4632.7,4632.5,2.69]
[1755057175604,0.108,4632.7,4632.6,3.543]
[1755057175900,0.20953,4633.3,4632.6,3.543]
[1755057175901,0.002,4633.4,4632.6,4.0107]
[1755057176073,0.108,4632.9,4632.6,4.0107]
[1755057176469,0.108,4632.9,4632.7,0.4677]
[1755057176890,0.108,4632.9,4632.6,3.543]
[1755057177083,0.108,4632.9,4632.7,3.539]
[1755057177593,0.108,4632.9,4632.8,0.4677]
[1755057177779,0.108,4632.9,4632.8,1.5897]
[1755057178158,0.002,4633.4,4632.8,5.1247]
[1755057178358,0.108,4633.1,4632.8,5.1247]
[1755057178594,0.108,4633.1,4632.9,1.5897]
[1755057178804,0.002,4633.4,4632.9,1.6977]
[1755057178971,0.002,4633.4,4632.9,0.108]
[1755057179166,0.002,4633.4,4633.0,1.5897]
[1755057179669,0.002,4633.4,4633.1,1.4729]
[1755057179868,0.002,4633.4,4633.2,3.534]
[1755057180067,0.002,4633.4,4633.2,5.0069]
[1755057180270,0.002,4633.4,4633.3,1.5809]
[1755057181203,0.002,4633.4,4633.3,5.1129]
[1755057181375,0.002,4633.4,4633.3,1.5809]
[1755057181570,0.002,4633.4,4633.3,5.1109]
[1755057184374,0.002,4633.4,4633.3,5.0029]
[1755057184669,0.002,4633.4,4633.3,5.1109]
[1755057184872,0.108,4635.2,4633.3,5.6609]
[1755057185075,0.108,4635.2,4633.3,4.188]
[1755057185403,0.108,4635.2,4633.7,5.281]
[1755057185698,0.108,4635.2,4633.7,8.804]
[1755057186101,0.108,4635.2,4633.7,10.3849]
[1755057186603,0.002,4634.8,4633.7,10.3849]
[1755057186976,0.002,4634.8,4633.7,10.3799]
[1755057189411,0.002,4634.8,4633.7,10.3749]
[1755057189583,1.0505,4634.8,4633.7,4.1641]
[1755057190107,1.0505,4634.8,4633.7,3.728]
[1755057190306,1.0505,4634.8,4633.7,0.216]
[1755057190484,1.0505,4633.8,4633.7,0.108]
[1755057190686,1.16635,4633.8,4633.7,3.618]
[1755057190887,1.0505,4633.8,4633.7,3.618]
[1755057191189,0.002,4633.8,4633.7,3.618]
[1755057191900,0.002,4633.8,4633.7,0.108]
[1755057192408,1.0505,4633.8,4633.7,3.617]
[1755057192615,0.002,4633.8,4633.7,3.617]
[1755057193903,0.002,4633.8,4633.7,0.108]
[1755057194099,0.002,4633.8,4633.7,3.614]
[1755057195312,0.002,4633.8,4633.7,11.475]
[1755057195713,0.002,4633.8,4633.7,7.969]
[1755057196009,0.002,4633.8,4633.7,11.471]
[1755057196010,1.0505,4633.8,4633.7,11.471]
[1755057196214,0.002,4633.8,4633.7,11.471]
[1755057196583,1.0505,4633.8,4633.7,2.797]
[1755057196812,1.5139,4633.8,4633.7,11.47]
[1755057197216,1.5139,4633.8,4633.7,2.797]
[1755057197445,1.5139,4633.8,4633.7,11.468]
[1755057198199,1.5139,4633.8,4633.7,2.797]
[1755057198400,0.002,4633.8,4633.7,11.466]
[1755057198801,0.002,4633.8,4633.7,2.797]
[1755057198981,0.002,4633.8,4633.7,11.465]
[1755057199182,0.002,4633.8,4633.7,2.797]
[1755057199586,0.002,4633.8,4633.7,12.0081]
[1755057200107,0.002,4633.8,4633.7,11.576]
[1755057200497,0.002,4633.8,4633.7,12.0121]
[1755057201008,0.002,4633.8,4633.7,11.576]
[1755057201610,0.002,4633.8,4633.7,11.575]
[1755057202000,0.002,4633.8,4633.7,12.0111]
[1755057202201,0.002,4633.8,4633.7,13.0479]
[1755057203818,0.002,4633.8,4633.7,11.571]
[1755057204598,0.002,4633.8,4633.7,9.5499]
[1755057204799,0.002,4633.8,4633.7,8.5131]
[1755057205000,0.002,4633.8,4633.7,8.077]
[1755057205224,0.002,4633.8,4633.7,11.568]
[1755057205911,0.002,4633.8,4633.7,11.567]
[1755057206107,0.002,4633.8,4633.7,5.2073121]
[1755057206309,0.002,4633.8,4633.7,11.35]
[1755057206627,0.002,4633.8,4633.7,12.432945]
[1755057207118,0.002,4633.8,4633.7,11.996845]
[1755057208497,0.002,4633.8,4633.7,12.432945]
[1755057208695,0.002,4633.8,4632.4,0.001]
[1755057208999,0.108,4633.6,4632.5,8.763]
[1755057209216,0.108,4633.1,4632.5,8.763]
[1755057210400,0.16219,4633.5,4632.5,8.763]
[1755057210602,0.108,4633.3,4632.5,8.763]
[1755057211023,0.108,4633.3,4632.6,3.489]
[1755057211225,0.108,4633.3,4632.5,5.28]
[1755057211423,0.108,4632.9,4632.7,3.489]
[1755057211826,1.1867,4632.9,4632.7,3.489]
[1755057211994,1.1867,4632.9,4632.5,5.172]
[1755057212201,1.1867,4632.9,4632.4,0.001]
[1755057212903,1.5252,4632.8,4632.4,0.001]
[1755057213318,0.108,4632.5,4632.4,0.001]
[1755057213512,0.108,4632.5,4632.4,3.487]
[1755057213700,0.108,4632.5,4632.4,3.486]
[1755057214016,0.108,4632.5,4632.4,0.001]
[1755057214326,0.108,4632.5,4632.4,3.486]
[1755057215330,0.108,4632.5,4632.4,2.691]
[1755057215517,0.108,4632.5,4632.4,7.864]
[1755057215926,0.108,4632.5,4632.4,11.345]
[1755057216251,0.108,4632.5,4632.4,8.654]
[1755057216651,0.108,4632.9,4632.4,3.48]
[1755057217039,0.108,4632.9,4632.5,0.4544]
[1755057217354,0.108,4632.9,4632.6,3.479]
[1755057218857,0.108,4633.3,4632.7,3.479]
[1755057219153,0.108,4633.3,4632.8,3.477]
[1755057219934,0.108,4633.3,4632.9,3.474]
[1755057221060,0.002,4633.8,4633.0,0.4544]
[1755057221228,0.002,4633.8,4633.2,0.108]
[1755057221432,0.002,4633.8,4633.6,0.108]
[1755057221633,0.002,4633.8,4633.7,3.474]
[1755057222136,0.002,4633.8,4633.7,3.9284]
[1755057222952,0.002,4633.8,4633.7,0.108]
[1755057223153,0.002,4633.8,4633.7,3.579]
[1755057223338,0.002,4633.8,4633.7,0.5624]
[1755057223544,0.002,4633.8,4633.7,5.1023]
[1755057223862,0.002,4633.8,4633.7,1.6303]
[1755057224262,0.002,4633.8,4633.7,5.1013]
[1755057224632,0.002,4633.8,4633.7,4.0334]
[1755057225335,0.002,4633.8,4633.7,12.9643]
[1755057226143,0.002,4633.8,4633.7,12.0044]
[1755057227555,0.002,4633.8,4633.7,13.0723]
[1755057228655,0.002,4633.8,4633.7,10.3823]
[1755057229235,0.002,4633.8,4633.7,7.90840259]
[1755057229438,0.002,4635.2,4633.8,0.55]
[1755057229649,0.002,4635.2,4634.2,0.108]
[1755057229973,0.002,4635.2,4634.2,4.121]
[1755057230270,0.002,4635.2,4634.8,0.55]
[1755057230469,0.002,4635.2,4635.1,0.108]
[1755057230767,0.002,4635.2,4635.1,3.572]
[1755057230938,0.002,4635.2,4635.1,4.0264]
[1755057231340,0.002,4635.2,4635.1,0.5624]
[1755057231546,0.002,4635.2,4635.1,4.0244]
[1755057231773,0.002,4635.2,4635.1,0.5624]
[1755057231938,0.002,4635.2,4635.1,4.0244]
[1755057232344,0.002,4635.2,4635.1,5.0923]
[1755057232745,0.002,4635.2,4635.1,5.0903]
[1755057233370,0.002,4635.2,4635.1,5.24998466]
[1755057233775,0.002,4635.2,4635.1,5.24798466]
[1755057234383,0.002,4635.2,4635.1,1.78998466]
[1755057234544,0.002,4635.2,4635.1,5.24798466]
[1755057235574,0.002,4635.2,4635.1,13.10798466]
[1755057236061,0.002,4635.2,4635.1,12.03808466]
[1755057236264,0.002,4635.2,4635.1,5.89308466]
[1755057236448,0.002,4635.2,4635.1,9.34908466]
[1755057237191,0.002,4635.2,4635.1,10.41698466]
[1755057237673,0.002,4635.2,4635.1,9.34808466]
[1755057237849,0.002,4635.2,4635.1,4.17708466]
[1755057238051,0.002,4635.2,4635.1,0.72208466]
[1755057238280,0.002,4635.2,4635.1,4.17708466]
[1755057239766,0.002,4635.2,4635.1,3.72268466]
[1755057240472,0.002,4635.2,4635.1,0.26768466]
[1755057240677,0.002,4635.2,4635.1,3.72268466]
[1755057242177,0.002,4635.2,4635.1,5.20258466]
[1755057242546,0.002,4635.3,4635.1,5.75258466]
[1755057242877,0.002,4635.3,4635.2,3.8899]
[1755057243066,0.002,4635.3,4635.1,0.26768466]
[1755057243252,0.002,4635.3,4635.2,3.455]
[1755057243460,0.002,4636.3,4635.2,3.455]
[1755057243461,1.0692,4638.7,4635.3,0.55]
[1755057243776,0.002,4640.3,4637.0,0.55]
[1755057243953,0.002,4640.3,4640.2,2.15507952]
[1755057244154,52.16435611,4646.9,4640.2,4.4366944]
[1755057244155,1.0692,4642.8,4640.2,4.4366944]
[1755057244362,1.0692,4642.8,4638.9,0.65]
[1755057244363,1.0692,4642.8,4640.4,0.55]
[1755057244596,1.5204,4643.3,4640.6,0.55]
[1755057244769,1.5204,4643.3,4640.7,0.3049368]
[1755057244770,0.15204,4643.2,4640.7,0.3049368]
[1755057245076,1.5204,4643.1,4641.0,0.55]
[1755057245277,0.645581,4647.5,4641.2,0.55]
[1755057245278,1.0692,4643.9,4641.2,0.55]
[1755057245480,1.0692,4643.9,4643.0,5.167]
[1755057245681,0.34031936,4648.9,4643.2,0.55]
[1755057245883,3.72695568,4646.8,4646.1,5.167]
[1755057246053,1.5204,4646.7,4646.2,2.687]
[1755057246386,1.5204,4646.6,4646.1,5.167]
[1755057246578,1.5204,4646.5,4646.1,5.167]
[1755057246744,1.5204,4646.4,4646.2,5.167]
[1755057246949,1.5204,4646.3,4646.2,5.167]
[1755057247559,1.5204,4646.3,4646.2,8.65]
[1755057248680,1.5204,4646.3,4642.3,2.15407178]
[1755057248681,1.5204,4646.3,4643.3,0.4349]
[1755057248852,2.20655568,4646.8,4643.3,0.4349]
[1755057248853,0.55,4646.1,4643.4,3.484]
[1755057249052,0.55,4645.9,4643.4,0.16396548]
[1755057249253,0.55,4645.7,4643.5,3.482]
[1755057249456,1.5204,4645.6,4643.5,3.482]
[1755057249649,0.55,4645.4,4643.2,0.4349]
[1755057249886,1.5204,4645.3,4643.3,3.485]
[1755057250046,1.5204,4645.2,4642.7,0.4349]
[1755057250247,0.26204,4645.8,4642.8,3.485]
[1755057250248,2.22244,4645.1,4642.8,3.485]
[1755057250450,0.55,4644.9,4642.2,0.4349]
[1755057250692,0.55,4644.7,4642.2,0.4349]
[1755057250864,0.55,4644.7,4642.3,3.486]
[1755057251064,1.5204,4644.6,4642.3,3.486]
[1755057251284,1.67244,4644.5,4642.3,3.486]
[1755057251484,0.15204,4644.5,4642.3,3.486]
[1755057251689,1.5204,4644.4,4642.3,3.486]
[1755057251888,1.0692,4645.1,4642.4,2.66866058]
[1755057252078,1.5204,4645.7,4642.6,0.55]
[1755057252274,1.5204,4645.7,4642.8,0.55]
[1755057252476,1.5204,4645.6,4643.0,0.55]
[1755057252655,1.67244,4645.5,4643.1,3.9199]
[1755057252857,1.67244,4645.5,4643.2,0.4349]
[1755057253056,1.67244,4645.5,4643.2,1.4799]
[1755057253259,1.67244,4645.5,4643.3,0.4349]
[1755057253459,0.108,4645.2,4643.4,3.483]
[1755057253660,0.108,4645.2,4643.3,0.4349]
[1755057253661,1.5204,4645.1,4642.7,0.4349]
[1755057253867,0.108,4643.9,4643.2,0.108]
[1755057254273,1.5204,4643.8,4642.8,3.482]
[1755057254487,0.108,4643.6,4642.9,0.108]
[1755057255014,1.5204,4643.5,4642.9,0.645549]
[1755057255298,1.5204,4643.5,4642.8,3.482]
[1755057255598,0.15204,4643.4,4643.0,5.163]
[1755057255969,1.5204,4643.3,4643.0,5.163]
[1755057256167,1.5204,4643.2,4643.0,5.163]
[1755057256399,1.0692,4643.1,4643.0,5.163]
[1755057257201,0.4512,4643.4,4643.0,5.163]
[1755057257371,1.0692,4643.8,4643.0,5.163]
[1755057257572,0.4512,4643.7,4643.0,5.163]
[1755057257774,0.55,4643.5,4643.0,5.163]
[1755057257973,0.55,4643.3,4643.1,3.478]
[1755057258169,0.55,4643.3,4643.0,5.163]
[1755057258170,0.55,4643.1,4643.0,5.163]
[1755057258407,1.6192,4643.1,4643.0,5.163]
[1755057258902,2.0704,4643.1,4643.0,5.162]
[1755057259068,2.27744,4643.1,4643.0,5.162]
[1755057259269,2.27744,4643.1,4643.0,8.639]
[1755057260298,2.27744,4643.1,4643.0,5.163]
[1755057260888,2.27744,4643.1,4642.0,2.684]
[1755057261206,0.75704,4643.1,4641.2,0.645799]
[1755057261415,0.75704,4643.1,4641.3,1.98]
[1755057261714,0.55,4642.9,4641.3,1.98]
[1755057261907,0.55,4642.7,4641.3,1.98]
[1755057262220,0.55,4642.5,4641.3,1.98]
[1755057262415,0.55,4642.3,4641.3,1.98]
[1755057262614,0.55,4642.1,4641.3,1.98]
[1755057262916,1.78244,4642.0,4641.3,1.98]
[1755057263491,2.0704,4641.9,4640.2,0.645932]
[1755057263686,2.0704,4641.9,4637.0,1.04004567]
[1755057263687,0.55,4641.7,4640.3,3.472]
[1755057264217,0.55,4641.5,4640.3,3.472]
[1755057264424,2.1539242,4642.7,4640.3,3.472]
[1755057264425,0.55,4641.3,4640.3,3.472]
[1755057264598,0.55,4641.1,4640.3,3.472]
[1755057265206,0.108,4640.4,4640.3,3.472]
[1755057265407,0.108,4640.4,4640.3,8.635]
[1755057265597,0.108,4640.4,4640.3,9.0699]
[1755057266085,0.108,4640.4,4640.3,8.635]
[1755057267487,0.108,4640.7,4640.3,10.1149]
[1755057267687,0.108,4640.7,4640.4,0.4349]
[1755057267908,0.108,4640.7,4640.5,0.4349]
[1755057268113,0.108,4640.7,4640.3,8.635]
[1755057268301,0.108,4640.7,4640.4,0.4349]
[1755057268507,0.108,4640.7,4640.3,8.635]
[1755057268508,0.108,4640.7,4640.5,3.463]
[1755057269093,0.108,4640.7,4640.5,3.8979]
[1755057269726,0.108,4640.7,4640.5,3.463]
[1755057272429,1.1142,4640.7,4640.5,3.463]
[1755057272629,1.11762,4640.6,4640.5,3.463]
[1755057274897,2.12792,4640.6,4640.5,3.463]
[1755057276135,0.66142,4640.6,4640.5,3.463]
[1755057276550,0.66142,4640.6,4640.5,3.454]
[1755057277745,0.55,4640.6,4640.5,3.454]
[1755057279935,1.5562,4640.6,4640.5,3.454]
[1755057280133,2.0165,4640.6,4640.5,3.454]
[1755057280464,0.55,4640.5,4640.3,5.164]
[1755057280629,2.0165,4640.5,4640.4,3.454]
[1755057280820,1.31995,4640.5,4640.4,3.454]
[1755057281020,0.85965,4640.5,4640.4,3.454]
[1755057281260,0.658,4640.5,4640.4,3.454]
[1755057281462,2.1245,4640.5,4640.4,3.454]
[1755057282466,0.108,4640.5,4640.4,3.454]
[1755057283865,0.108,4640.5,4640.4,3.9259]
[1755057285370,0.108,4640.5,4640.4,3.454]
[1755057286830,0.108,4640.5,4640.4,3.9259]
[1755057287233,0.108,4640.5,4640.4,3.454]
[1755057287858,0.658,4640.5,4640.4,3.454]
[1755057288168,1.6642,4640.5,4640.4,3.454]
[1755057288328,1.83062,4640.5,4640.4,3.454]
[1755057288731,0.82442,4640.5,4640.4,3.454]
[1755057288931,0.658,4640.5,4640.4,3.454]
[1755057289130,1.6642,4640.5,4640.4,3.454]
[1755057289530,0.658,4640.5,4640.4,3.454]
[1755057291128,2.1245,4640.5,4640.4,3.454]
[1755057291351,1.6642,4640.5,4640.4,3.454]
[1755057291688,1.83062,4640.5,4640.4,3.454]
[1755057291845,1.0062,4641.2,4640.4,3.454]
[1755057292050,0.108,4640.5,4640.4,3.454]
[1755057293184,1.6642,4640.5,4640.4,3.454]
[1755057294771,0.658,4640.5,4640.4,3.454]
[1755057296103,0.108,4640.5,4640.4,3.9259]
[1755057297146,0.108,4640.5,4640.4,3.454]
[1755057297548,0.108,4640.5,4640.0,0.47138467]
[1755057297853,0.108,4640.5,4640.4,5.165]
[1755057298972,0.108,4640.5,4640.4,8.618]
[1755057299388,0.002,4641.6,4640.4,9.5819]
[1755057299791,0.9776,4641.6,4640.4,8.618]
[1755057299959,0.002,4641.0,4640.4,8.618]
[1755057300297,0.002,4641.0,4640.5,0.432]
[1755057300477,0.002,4641.0,4640.6,3.453]
[1755057300676,0.002,4641.0,4640.6,3.885]
[1755057300884,0.002,4641.0,4640.7,0.432]
[1755057301067,0.002,4641.0,4640.8,3.453]
[1755057301256,0.002,4641.0,4640.8,4.4169]
[1755057301594,0.002,4641.0,4640.4,5.165]
[1755057301595,0.55,4640.9,4640.4,5.165]
[1755057303682,0.55,4640.5,4640.4,5.165]
[1755057303890,2.16975,4640.5,4640.4,8.617]
[1755057304078,1.72285,4640.5,4640.4,8.617]
[1755057304271,2.16975,4640.5,4640.4,8.617]
[1755057304670,1.72285,4640.5,4640.4,8.617]